{"text_format":"1","workbook":"xlsx","n_sheets":5,"sheets":["tek mail","çoklu mail","rangetohtml örneği","toplantı","otomail form format"],"not_rendered":{"charts":0,"images":0,"macros":1,"external_links":0,"defined_names":5,"comments":0,"pivot_tables":0},"unopened":[],"bounds":{"document_bytes":16777216,"sheet_cells":100000,"rows_first":2000,"rows_last":500,"rows_between":2000,"halvings":0,"cell_chars":16384,"cell_head_chars":4096},"cells_cut":0,"cells_raw":0,"read":"whole","date_system":"1900"}

{"sheet":"tek mail","index":0,"n_rows":3,"n_cols":2,"rows_kept":3,"cut":false,"hidden":false,"merged":[]}
["To:","mvolkanyurtseven@gmail.com"]
["Subject:","merhaba"]
["Body:","deneme maili deneme maili deneme maili deneme maili"]

{"sheet":"çoklu mail","index":1,"n_rows":4,"n_cols":4,"rows_kept":4,"cut":false,"hidden":false,"merged":[]}
["To","İsim","Cinsiyet","Mesaj"]
["mvolkanyurtseven@gmail.com","Volkan","Erkek",{"$f":"B2&IF(C2=\"Erkek\",\" Bey\",\" Hanım\")&\" merhaba,\"&CHAR(10)","v":"Volkan Bey merhaba,\n"}]
["volkan.yurtseven@hotmail.com","Doruk","Erkek",{"$f":"B3&IF(C3=\"Erkek\",\" Bey\",\" Hanım\")&\" merhaba,\"&CHAR(10)","v":"Doruk Bey merhaba,\n"}]
["info@excelinefendisi.com","Doğa","Kadın","Doğa Hanım merhaba,\n"]

{"sheet":"rangetohtml örneği","index":2,"n_rows":12,"n_cols":5,"rows_kept":12,"cut":false,"hidden":false,"merged":[]}
["Şube","Müşteri no","Hesap no","Para Birimi","Çıkan Tutar"]
[1,"M1","H100","TL",440]
[1,"M2","H101","TL",367]
[1,"M3","H102","$",211]
[1,"M4","H103","TL",444]
[2,"M5","H104","TL",258]
[2,"M6","H105","TL",459]
[2,"M7","H106","$",446]
[3,"M8","H107","TL",395]
[3,"M9","H108","TL",257]
[3,"M10","H109","TL",270]
[3,"M11","H110","TL",101]

{"sheet":"toplantı","index":3,"n_rows":6,"n_cols":2,"rows_kept":6,"cut":false,"hidden":false,"merged":[]}
["Tarih","topl süre"]
[{"$f":"TODAY()-5","v":"2019-07-14"}]
[{"$f":"A2+1","v":"2019-07-15"}]
[{"$f":"A3+1","v":"2019-07-16"}]
["2019-07-17"]
["2019-07-18"]

{"sheet":"otomail form format","index":4,"n_rows":7,"n_cols":9,"rows_kept":7,"cut":false,"hidden":false,"merged":[]}
["şube","sicil","bölge","ccler","bccler","1.değişken","2.değişken","3.değişken","4.değişken"]
[1,"volkan.yurtseven@hotmail.com",1001,"mvolkanyurtseven@gmail.com;mvolkanyurtseven@yahoo.com.tr","mvolkanyurtseven@gmail.com;mvolkanyurtseven@yahoo.com.tr",174,155,{"$f":"IF(F2>G2,\"üstünde olduğu\",IF(F2<G2,\"altında olduğu\",\"tuttuğu\"))","v":"üstünde olduğu"},{"$f":"IF(F2>=G2,\"Tebrik eder başarılarınızı devamını dileriz\",IF(F2<G2,\"Birsonraki dönem hedef açığınızı kapatacağınıza inanıyoruz\"))","v":"Tebrik eder başarılarınızı devamını dileriz"}]
[2,"mvolkanyurtseven@gmail.com;mvolkanyurtseven@yahoo.com.tr",1001,"mvolkanyurtseven@gmail.com;mvolkanyurtseven@yahoo.com.tr","mvolkanyurtseven@gmail.com;mvolkanyurtseven@yahoo.com.tr",172,172,{"$f":"IF(F3>G3,\"üstünde olduğu\",IF(F3<G3,\"altında olduğu\",\"tuttuğu\"))","v":"tuttuğu"},{"$f":"IF(F3>=G3,\"Tebrik eder başarılarınızı devamını dileriz\",IF(F3<G3,\"Birsonraki dönem hedef açığınızı kapatacağınıza inanıyoruz\"))","v":"Tebrik eder başarılarınızı devamını dileriz"}]
[3,"olmayanmail9912@gmail",1001,"mvolkanyurtseven@gmail.com;mvolkanyurtseven@yahoo.com.tr","mvolkanyurtseven@gmail.com;mvolkanyurtseven@yahoo.com.tr",131,180,"altında olduğu","Birsonraki dönem hedef açığınızı kapatacağınıza inanıyoruz"]
[4,"volkan.yurtseven@hotmail.com;mvolkanyurtseven@gmail.com;mvolkanyurtseven@yahoo.com.tr",1002,"mvolkanyurtseven@gmail.com;mvolkanyurtseven@yahoo.com.tr","mvolkanyurtseven@gmail.com;mvolkanyurtseven@yahoo.com.tr",144,147,"altında olduğu","Birsonraki dönem hedef açığınızı kapatacağınıza inanıyoruz"]
[5,"mvolkanyurtseven@gmail.com;mvolkanyurtseven@yahoo.com.tr",1002,"mvolkanyurtseven@gmail.com;mvolkanyurtseven@yahoo.com.tr","mvolkanyurtseven@gmail.com;mvolkanyurtseven@yahoo.com.tr",111,103,"üstünde olduğu","Tebrik eder başarılarınızı devamını dileriz"]
[6,"ali11.yurtseven@hotmail.com;veli11.mvolkanyurtseven@gmail.com;ahmet11.mvolkanyurtseven@yahoo.com.tr",1002,"ayse11.mvolkanyurtseven@gmail.com;hulya11.mvolkanyurtseven@yahoo.com.tr","mvolkanyurtseven@gmail.com;mvolkanyurtseven@yahoo1",168,149,"üstünde olduğu","Tebrik eder başarılarınızı devamını dileriz"]